bitfinex/quotes_BTCUSD_20241128
["timestamp","ask_amount","ask_price","bid_price","bid_amount"]
[1732808135297,0.10680438,95292.0,95291.0,0.0038638]
[1732808135298,0.10780438,95292.0,95291.0,0.0038638]
[1732808135523,0.10680438,95292.0,95291.0,0.0008638]
[1732808136020,0.10680438,95292.0,95291.0,0.0038638]
[1732808136502,0.26230533,95292.0,95291.0,0.0008638]
[1732808136747,0.51044095,95292.0,95291.0,0.0018638]
[1732808136965,0.51044095,95292.0,95291.0,0.0048638]
[1732808137622,0.45778521,95292.0,95291.0,0.0048638]
[1732808137873,0.45778521,95292.0,95291.0,0.0018638]
[1732808138089,0.61078521,95292.0,95291.0,0.0018638]
[1732808138584,0.68848521,95292.0,95291.0,0.0008638]
[1732808138849,0.69548521,95292.0,95291.0,0.0008638]
[1732808139080,0.80031667,95292.0,95291.0,0.0008638]
[1732808139517,0.80831667,95292.0,95291.0,0.0008638]
[1732808139745,0.80831667,95292.0,95281.0,2e-07]
[1732808139746,0.25,95282.0,95281.0,2e-07]
[1732808139972,0.26,95272.0,95265.0,0.28246952]
[1732808140201,0.72063867,95272.0,95265.0,0.28246952]
[1732808141151,0.60780721,95272.0,95265.0,0.28246952]
[1732808141653,0.35780721,95272.0,95265.0,0.28246952]
[1732808142145,0.36380721,95272.0,95265.0,0.28246952]
[1732808142396,0.36680721,95272.0,95265.0,0.28246952]
[1732808143081,0.42300721,95272.0,95250.0,0.1]
[1732808143324,0.52583867,95272.0,95250.0,0.1]
[1732808144491,0.41300721,95272.0,95250.0,0.1]
[1732808144740,0.104985,95251.0,95250.0,0.08374649]
[1732808145458,0.10684938,95251.0,95250.0,0.08374649]
[1732808145703,0.20969459,95251.0,95250.0,0.08374649]
[1732808146384,0.60969459,95251.0,95250.0,0.08374649]
[1732808146626,0.71066167,95251.0,95250.0,0.08374649]
[1732808146841,0.60983021,95251.0,95250.0,0.08374649]
[1732808147060,0.61083021,95251.0,95250.0,0.08474649]
[1732808147290,0.61083021,95251.0,95250.0,0.08374649]
[1732808147535,0.71366167,95251.0,95250.0,0.08374649]
[1732808147773,0.71666167,95251.0,95250.0,0.08374649]
[1732808148005,0.71266167,95251.0,95250.0,0.08374649]
[1732808148235,0.71366167,95251.0,95250.0,0.08374649]
[1732808148452,0.71566167,95251.0,95250.0,0.08374649]
[1732808148919,0.71366167,95251.0,95250.0,0.08374649]
[1732808149369,0.71566167,95251.0,95250.0,0.08374649]
[1732808150728,0.71266167,95251.0,95250.0,0.08374649]
[1732808150961,0.72166167,95251.0,95250.0,0.08374649]
[1732808151177,0.21883021,95251.0,95250.0,0.08374649]
[1732808151428,0.36683021,95251.0,95250.0,0.08374649]
[1732808151673,0.37583021,95251.0,95250.0,0.08374649]
[1732808152105,0.263985,95251.0,95250.0,0.08374649]
[1732808152551,0.269985,95251.0,95250.0,0.08374649]
[1732808153037,0.41618392,95251.0,95250.0,0.08374649]
[1732808153687,0.31333871,95251.0,95250.0,0.08374649]
[1732808154165,0.41618392,95251.0,95250.0,0.08374649]
[1732808155155,0.37283021,95251.0,95250.0,0.08374649]
[1732808156229,0.269985,95251.0,95250.0,0.08374649]
[1732808157654,0.015,95251.0,95250.0,0.08374649]
[1732808158336,0.009,95251.0,95250.0,0.10674649]
[1732808158774,0.002,95251.0,95250.0,0.10674649]
[1732808159013,0.002,95251.0,95250.0,0.21259429]
[1732808159232,0.0037236,95251.0,95250.0,0.21259429]
[1732808159707,0.0037236,95251.0,95250.0,0.10760829]
[1732808159937,0.0037236,95251.0,95250.0,0.21259429]
[1732808160406,0.0037236,95251.0,95250.0,0.10760829]
[1732808160648,0.0017236,95251.0,95250.0,0.10760829]
[1732808160890,0.0027236,95251.0,95250.0,0.21259429]
[1732808161138,0.0027236,95251.0,95250.0,0.21459429]
[1732808164555,0.0027236,95251.0,95250.0,0.4083395]
[1732808165458,0.0027236,95251.0,95250.0,0.4183395]
[1732808165664,0.0027236,95251.0,95250.0,0.4653395]
[1732808166559,0.0099972,95282.0,95281.0,0.104952]
[1732808166786,0.104937,95295.0,95283.0,0.10495]
[1732808167000,0.1521616,95310.0,95267.0,0.1258]
[1732808167001,0.1521616,95310.0,95285.0,0.0831]
[1732808167218,0.1521616,95300.0,95286.0,0.023]
[1732808167436,0.00186438,95299.0,95286.0,0.023]
[1732808167877,0.104942,95291.0,95286.0,0.023]
[1732808168367,0.008,95295.0,95286.0,0.023]
[1732808168581,0.00186438,95294.0,95286.0,0.023]
[1732808168800,0.00186438,95294.0,95286.0,0.024]
[1732808169047,0.104946,95287.0,95286.0,0.001]
[1732808169462,0.35779121,95287.0,95286.0,0.001]
[1732808169971,0.254946,95287.0,95286.0,0.001]
[1732808170179,0.0772,95311.0,95280.0,0.0767]
[1732808170403,0.008,95291.0,95283.0,0.209899]
[1732808170697,0.008,95291.0,95290.0,0.127942]
[1732808170877,0.005,95291.0,95290.0,0.023]
[1732808171090,0.005,95291.0,95275.0,0.047]
[1732808171091,0.104944,95289.0,95281.0,0.023]
[1732808171302,0.002,95287.0,95284.0,0.023]
[1732808171770,0.005,95287.0,95283.0,0.01]
[1732808171998,0.002,95287.0,95286.0,0.127947]
[1732808172231,0.0098429,95304.0,95286.0,0.33759644]
[1732808172232,0.0017236,95291.0,95286.0,0.33759644]
[1732808172464,0.0017236,95291.0,95290.0,0.127942]
[1732808172674,0.209825,95318.0,95291.0,0.023]
[1732808172890,0.209825,95318.0,95297.0,0.104934]
[1732808172891,0.104923,95308.0,95297.0,0.104934]
[1732808173107,0.104922,95309.0,95298.0,0.023]
[1732808173320,0.209834,95314.0,95298.0,0.023]
[1732808173321,0.209834,95314.0,95298.0,0.02485714]
[1732808173538,0.209845,95308.0,95298.0,0.02485714]
[1732808173750,0.209856,95304.0,95298.0,0.023]
[1732808173985,0.209843,95310.0,95293.0,0.023]
[1732808174189,0.209843,95310.0,95297.0,0.104934]
[1732808174190,0.004726,95305.0,95297.0,0.104934]
[1732808174405,0.004726,95305.0,95296.0,0.023]
[1732808174683,0.001726,95305.0,95296.0,0.023]
[1732808174901,0.001726,95305.0,95299.0,0.023]
[1732808175107,0.109652,95305.0,95295.0,0.023]
[1732808175328,0.001726,95305.0,95297.0,0.023]
[1732808175538,0.001726,95305.0,95299.0,0.023]
[1732808175745,0.003726,95305.0,95299.0,0.023]
[1732808176039,0.003726,95305.0,95295.0,0.023]
[1732808176252,0.003726,95305.0,95299.0,0.104932]
[1732808176482,0.003726,95305.0,95298.0,0.023]
[1732808176703,0.108653,95305.0,95297.0,0.023]
[1732808176919,0.006726,95305.0,95297.0,0.104934]
[1732808177136,0.001726,95305.0,95298.0,0.023]
[1732808177372,0.004726,95305.0,95298.0,0.023]
[1732808177611,0.006726,95305.0,95300.0,0.104931]
[1732808177829,0.006726,95305.0,95301.0,0.023]
[1732808178074,0.007726,95305.0,95300.0,0.023]
[1732808178279,0.007726,95305.0,95298.0,0.023]
[1732808178280,0.001726,95305.0,95298.0,0.023]
[1732808178519,0.003726,95305.0,95298.0,0.127933]
[1732808178737,0.006726,95305.0,95302.0,0.023]
[1732808178978,0.004726,95305.0,95303.0,0.023]
[1732808179405,0.004726,95305.0,95295.0,0.232874]
[1732808179624,0.004726,95305.0,95296.0,0.10284521]
[1732808179843,0.004726,95305.0,95297.0,0.023]
[1732808180061,0.004726,95305.0,95297.0,0.12584521]
[1732808180062,0.001726,95305.0,95297.0,0.12584521]
[1732808180284,0.001726,95305.0,95288.0,0.209889]
[1732808180285,0.00186438,95304.0,95279.0,0.01]
[1732808180505,0.00186438,95304.0,95280.0,0.25686422]
[1732808180731,0.006726,95305.0,95290.0,0.1521616]
[1732808180956,0.006726,95305.0,95296.0,0.004]
[1732808180957,0.004726,95305.0,95296.0,0.004]
[1732808181231,0.004726,95305.0,95297.0,0.106934]
[1732808181453,0.001726,95305.0,95298.0,0.104933]
[1732808181668,0.003,95304.0,95297.0,0.104934]
[1732808181889,0.003,95304.0,95298.0,0.10284521]
[1732808182106,0.003,95304.0,95303.0,0.127928]
[1732808182367,0.003,95304.0,95303.0,0.23077321]
[1732808183068,0.0017256,95312.0,95311.0,0.104919]
[1732808183298,0.0017256,95312.0,95311.0,0.127919]
[1732808183535,0.0017256,95312.0,95311.0,0.209419]
[1732808184245,0.0017256,95312.0,95311.0,0.1045]
[1732808184488,0.0017256,95312.0,95311.0,0.023]
[1732808184721,0.0017256,95312.0,95311.0,0.004]
[1732808184722,0.1066436,95312.0,95311.0,0.004]
[1732808185205,0.0017256,95312.0,95311.0,0.004]
[1732808185426,0.0017256,95312.0,95311.0,0.131919]
[1732808186829,0.0017256,95312.0,95311.0,0.35736421]
[1732808193722,0.0017256,95312.0,95311.0,0.36795549]
[1732808193971,0.0017256,95312.0,95311.0,0.23076421]
[1732808194216,0.0017256,95312.0,95311.0,0.12584521]
[1732808195398,0.0017256,95312.0,95311.0,0.10284521]
[1732808196555,0.0017256,95312.0,95311.0,0.12584521]
[1732808196768,0.0017256,95312.0,95311.0,0.35926421]
[1732808197900,0.0017256,95312.0,95311.0,0.50926421]
[1732808198148,0.0017256,95312.0,95311.0,0.52179639]
[1732808198385,0.0017256,95312.0,95311.0,0.52179635]
[1732808198594,0.0017256,95312.0,95311.0,0.50926421]
[1732808199474,0.0027256,95312.0,95311.0,0.51326421]
[1732808199901,0.0017256,95312.0,95311.0,0.50926421]
[1732808200129,0.0027256,95312.0,95311.0,0.51726421]
[1732808200341,0.0027256,95312.0,95311.0,0.51326421]
[1732808200770,0.0037256,95312.0,95311.0,0.52126421]
[1732808202788,0.0037256,95312.0,95311.0,0.53187723]
[1732808203921,0.01,95335.0,95331.0,0.023]
[1732808204176,0.02367,95335.0,95313.0,0.00185666]
[1732808204396,0.02367,95335.0,95311.0,0.12545823]
[1732808204397,0.104909,95320.0,95314.0,0.10284521]
[1732808204653,0.02553438,95335.0,95314.0,0.10284521]
[1732808205099,0.209809,95325.0,95314.0,0.10284521]
[1732808205319,0.01186438,95335.0,95314.0,0.10284521]
[1732808205762,0.104908,95321.0,95314.0,0.10284521]
[1732808206000,0.104909,95321.0,95314.0,0.10284521]
[1732808206223,0.209806,95326.0,95314.0,0.10284521]
[1732808206535,0.209806,95326.0,95311.0,0.01961302]
[1732808206536,0.104918,95312.0,95311.0,0.009]
[1732808206633,0.104918,95312.0,95305.0,0.0008613]
[1732808206634,0.154125,95306.0,95305.0,0.0008613]
[1732808206933,0.16598938,95306.0,95305.0,0.0008613]
[1732808207395,0.31598938,95306.0,95305.0,0.0008613]
[1732808207616,0.52980167,95306.0,95305.0,0.0008613]
[1732808208730,0.61020167,95306.0,95305.0,0.0008613]
[1732808209182,0.61120167,95306.0,95305.0,0.0008613]
[1732808209610,0.61220167,95306.0,95305.0,0.0008613]
[1732808209838,0.61820167,95306.0,95305.0,0.0018613]
[1732808210071,0.61620167,95306.0,95305.0,0.0018613]
[1732808210323,0.62120167,95306.0,95305.0,0.0018613]
[1732808211275,0.61520167,95306.0,95305.0,0.0008613]
[1732808211765,0.62120167,95306.0,95305.0,0.0008613]
[1732808212266,0.51837021,95306.0,95305.0,0.0008613]
[1732808216210,0.255525,95306.0,95305.0,0.0008613]
[1732808216427,0.115925,95306.0,95305.0,0.0008613]
[1732808216720,0.011,95306.0,95305.0,0.0008613]
[1732808217880,0.006,95306.0,95305.0,0.0008613]
[1732808218380,0.004,95306.0,95305.0,0.0008613]
[1732808218853,0.104914,95316.0,95305.0,0.0008613]
[1732808219100,0.104914,95316.0,95306.0,0.023]
[1732808219806,0.104913,95317.0,95306.0,0.023]
[1732808220022,0.01,95323.0,95306.0,0.023]
[1732808220252,0.104914,95316.0,95306.0,0.0248569]
[1732808220488,0.104914,95316.0,95305.0,0.0008613]
[1732808220931,0.01,95323.0,95305.0,0.0008613]
[1732808221179,0.0099036,95325.0,95305.0,0.0008613]
[1732808221180,0.114925,95306.0,95305.0,0.0008613]
[1732808221402,0.45937021,95306.0,95305.0,0.0008613]
[1732808222810,0.46937021,95306.0,95305.0,0.0008613]
[1732808223509,0.006,95306.0,95305.0,0.0008613]
[1732808223771,0.01,95306.0,95305.0,0.0008613]
[1732808224218,0.01,95306.0,95305.0,0.12670651]
[1732808224462,0.01,95306.0,95305.0,0.23163251]
[1732808224681,0.0117226,95334.0,95305.0,0.23163251]
[1732808224682,0.209797,95330.0,95315.0,0.023]
[1732808224936,0.104896,95332.0,95317.0,0.023]
[1732808225161,0.0017226,95334.0,95320.0,0.023]
[1732808225371,0.0017226,95334.0,95322.0,0.023]
[1732808225652,0.0017226,95334.0,95320.0,0.232817]
[1732808225653,0.0017226,95334.0,95329.0,0.104899]
[1732808225897,0.0017226,95334.0,95330.0,0.12770158]
[1732808226430,0.0017226,95334.0,95330.0,0.12584521]
[1732808226644,0.104898,95330.0,95329.0,0.023]
[1732808226847,0.104898,95330.0,95305.0,0.0008613]
[1732808226848,0.01,95333.0,95307.0,0.00185667]
[1732808227079,0.104898,95331.0,95329.0,0.002]
[1732808227300,0.1066166,95334.0,95329.0,0.002]
[1732808227531,0.104898,95330.0,95329.0,0.002]
[1732808228227,0.104898,95330.0,95329.0,0.023]
[1732808228452,0.20979,95333.0,95309.0,0.00185662]
[1732808228665,0.0017226,95334.0,95309.0,0.00185662]
[1732808228666,0.02115126,95332.0,95311.0,0.127918]
[1732808228877,0.02115126,95332.0,95329.0,0.002]
[1732808229092,0.104898,95330.0,95329.0,0.002]
[1732808229309,0.104898,95330.0,95329.0,0.007]
[1732808229567,0.209793,95332.0,95314.0,0.023]
[1732808229806,0.0017226,95334.0,95316.0,0.023]
[1732808229807,0.104901,95328.0,95316.0,0.023]
[1732808230266,0.104901,95328.0,95315.0,0.023]
[1732808230475,0.104901,95328.0,95308.0,0.22086811]
[1732808230476,0.0017226,95334.0,95318.0,0.023]
[1732808230689,0.0017226,95334.0,95324.0,0.023]
[1732808231378,0.0017226,95334.0,95319.0,0.10284521]
[1732808231379,0.0017226,95334.0,95326.0,0.023]
[1732808231604,0.01,95333.0,95329.0,0.004]
[1732808231822,0.0017226,95334.0,95329.0,0.004]
[1732808232236,0.104909,95321.0,95312.0,0.00185667]
[1732808232241,0.01,95333.0,95305.0,0.0008613]
[1732808232489,0.0017226,95334.0,95305.0,0.0008613]
[1732808232490,0.0017226,95334.0,95329.0,0.001]
[1732808232967,0.0017226,95334.0,95330.0,0.104898]
[1732808233200,0.0017226,95334.0,95329.0,0.003]
[1732808233201,0.0017226,95334.0,95333.0,0.127895]
[1732808233415,0.0017226,95334.0,95333.0,0.12770147]
[1732808233633,0.0017226,95334.0,95333.0,0.23074021]
[1732808234586,0.0017262,95347.0,95343.0,0.023]
[1732808234849,0.0017262,95347.0,95345.0,0.023]
[1732808235082,3.6e-06,95347.0,95346.0,0.02485606]
[1732808235303,3.6e-06,95347.0,95346.0,0.023]
[1732808235735,3.6e-06,95347.0,95346.0,0.02485606]
[1732808235960,3.6e-06,95347.0,95346.0,0.023]
[1732808236637,3.6e-06,95347.0,95346.0,0.028]
[1732808236854,3.6e-06,95347.0,95346.0,0.13473706]
[1732808237299,3.6e-06,95347.0,95346.0,0.23758227]
[1732808237577,3.6e-06,95347.0,95346.0,0.28084521]
[1732808237797,3.6e-06,95347.0,95346.0,0.13084521]
[1732808238024,0.1048836,95347.0,95346.0,0.007]
[1732808238253,0.1048836,95347.0,95346.0,0.002]
[1732808238254,0.15838444,95347.0,95346.0,0.002]
[1732808238509,0.26122965,95347.0,95346.0,0.002]
[1732808238749,0.26122965,95347.0,95305.0,0.0008613]
[1732808238750,0.0767,95346.0,95305.0,0.0008613]
[1732808238973,0.104925,95306.0,95305.0,0.0008613]
[1732808239455,0.219837,95313.0,95305.0,0.0008613]
[1732808239456,0.01,95313.0,95305.0,0.0008613]
[1732808239680,0.104925,95306.0,95305.0,0.0008613]
[1732808240819,0.104923,95308.0,95305.0,0.0008613]
[1732808241062,0.104925,95306.0,95305.0,0.0028613]
[1732808241316,0.209821,95319.0,95305.0,0.0028613]
[1732808241595,0.20981,95324.0,95305.0,0.1057863]
[1732808241807,0.104909,95320.0,95307.0,0.023]
[1732808242027,0.104907,95322.0,95308.0,0.00185684]
[1732808242262,0.209812,95323.0,95310.0,0.023]
[1732808242499,0.209815,95322.0,95312.0,0.023]
[1732808242718,0.104912,95318.0,95308.0,0.023]
[1732808242937,0.104911,95319.0,95308.0,0.023]
[1732808243164,0.003,95324.0,95308.0,0.023]
[1732808243388,0.104911,95319.0,95308.0,0.0248568]
[1732808243627,0.104911,95319.0,95308.0,0.023]
[1732808244069,0.104908,95322.0,95308.0,0.023]
[1732808244290,0.003,95324.0,95310.0,0.023]
[1732808244518,0.001,95322.0,95312.0,0.023]
[1732808244729,0.2196712,95328.0,95314.0,0.023]
[1732808245018,0.0098682,95328.0,95314.0,0.023]
[1732808245237,0.104915,95315.0,95308.0,0.001]
[1732808245460,0.104913,95317.0,95310.0,0.023]
[1732808245678,0.104911,95319.0,95310.0,0.025]
[1732808246119,0.209799,95329.0,95310.0,0.023]
[1732808246368,0.1049,95328.0,95310.0,0.023]
[1732808246586,0.0428143,95330.0,95310.0,0.02485676]
[1732808246821,0.104911,95319.0,95310.0,0.023]
[1732808247254,0.0198345,95330.0,95313.0,0.023]
[1732808247517,0.209813,95323.0,95313.0,0.023]
[1732808247720,0.01,95315.0,95308.0,0.0017218]
[1732808247963,0.104921,95309.0,95308.0,0.0017218]
[1732808249529,0.114921,95309.0,95308.0,0.0057218]
[1732808250702,0.114921,95309.0,95308.0,0.0067218]
[1732808250920,0.114921,95309.0,95308.0,0.0027218]
[1732808250921,0.43241155,95309.0,95308.0,0.0027218]
[1732808251171,0.43241155,95309.0,95308.0,0.0017218]
[1732808251449,0.43541155,95309.0,95308.0,0.0017218]
[1732808251678,0.43541155,95309.0,95308.0,0.0027218]
[1732808251900,0.43541155,95309.0,95308.0,0.0037218]
[1732808252368,0.48241155,95309.0,95308.0,0.0037218]
[1732808253967,0.48341155,95309.0,95308.0,0.0017218]
[1732808254454,0.48641155,95309.0,95308.0,0.0027218]
[1732808254686,0.48641155,95309.0,95308.0,0.0017218]
[1732808254935,0.43476621,95309.0,95308.0,0.0017218]
[1732808255171,0.335921,95309.0,95308.0,0.0017218]
[1732808255685,0.268921,95309.0,95308.0,0.0017218]
[1732808255905,0.014,95309.0,95308.0,0.0017218]
[1732808256581,0.118921,95309.0,95308.0,0.0017218]
[1732808256799,0.115921,95309.0,95308.0,0.0017218]
[1732808257267,0.104921,95309.0,95308.0,0.0017218]
[1732808257488,0.104921,95309.0,95308.0,0.0027218]
[1732808258219,0.105921,95309.0,95308.0,0.0087218]
[1732808258439,0.105921,95309.0,95308.0,0.0077218]
[1732808258652,0.105921,95309.0,95308.0,0.0107218]
[1732808259120,0.001,95309.0,95308.0,0.0107218]
[1732808259391,0.105921,95309.0,95308.0,0.0107218]
[1732808260263,0.10778538,95309.0,95308.0,0.0107218]
[1732808260973,0.10678538,95309.0,95308.0,0.0047218]
[1732808261221,0.10678538,95309.0,95308.0,0.0017218]
[1732808261455,0.10778538,95309.0,95308.0,0.0107218]
[1732808262163,0.105921,95309.0,95308.0,0.0107218]
[1732808263095,0.001,95309.0,95308.0,0.0077218]
[1732808263315,0.105921,95309.0,95308.0,0.0077218]
[1732808263532,0.104921,95309.0,95308.0,0.0027218]
[1732808263956,0.104921,95309.0,95308.0,0.0047218]
[1732808264207,0.104921,95309.0,95308.0,0.0017218]
[1732808264466,0.16124438,95309.0,95308.0,0.0107218]
[1732808264680,0.16224438,95309.0,95308.0,0.0107218]
[1732808264944,0.10778538,95309.0,95308.0,0.0107218]
[1732808265407,0.10678538,95309.0,95308.0,0.0047218]
[1732808265646,0.10678538,95309.0,95308.0,0.0077218]
[1732808265925,0.104921,95309.0,95308.0,0.0077218]
[1732808266600,0.104921,95309.0,95308.0,0.0047218]
[1732808266812,0.104921,95309.0,95308.0,0.0057218]
[1732808267256,0.104921,95309.0,95308.0,0.0047218]
[1732808267485,0.104921,95309.0,95308.0,0.0017218]
[1732808267718,0.104921,95309.0,95308.0,0.0037218]
[1732808267965,0.106921,95309.0,95308.0,0.0037218]
[1732808268273,0.106921,95309.0,95308.0,0.0017218]
[1732808268464,0.107921,95309.0,95308.0,0.0107218]
[1732808269363,0.107921,95309.0,95308.0,0.0137218]
[1732808269794,0.107921,95309.0,95308.0,0.0107218]
[1732808270015,0.107921,95309.0,95308.0,0.0117218]
[1732808270475,0.104921,95309.0,95308.0,0.0017218]
[1732808270747,0.104921,95309.0,95308.0,0.0047218]
[1732808270950,0.104921,95309.0,95308.0,0.0057218]
[1732808273182,0.01,95325.0,95309.0,0.023]
[1732808273413,0.104915,95315.0,95309.0,0.023]
[1732808273648,0.104914,95316.0,95309.0,0.023]
[1732808273871,0.104915,95315.0,95309.0,0.023]
[1732808274083,0.00186438,95323.0,95309.0,0.023]
[1732808274295,0.10492,95310.0,95309.0,0.023]
[1732808274743,0.104918,95312.0,95309.0,0.023]
[1732808274962,0.209828,95316.0,95309.0,0.023]
[1732808275183,0.104919,95311.0,95309.0,0.023]
[1732808275401,0.209828,95316.0,95310.0,0.03742744]
[1732808275622,0.104918,95312.0,95311.0,0.03086453]
[1732808275923,0.104918,95312.0,95311.0,0.03742737]
[1732808276184,0.104918,95312.0,95311.0,0.01442737]
[1732808276408,0.28348304,95312.0,95311.0,0.0065626]
[1732808276629,0.11492,95310.0,95309.0,0.004]
[1732808276860,0.21962959,95310.0,95309.0,0.004]
[1732808277086,0.104921,95309.0,95308.0,0.0017218]
[1732808277324,0.20963059,95309.0,95308.0,0.0017218]
[1732808277802,0.11678538,95309.0,95308.0,0.0017218]
[1732808278888,0.11678538,95309.0,95308.0,0.0037218]
[1732808279986,0.104921,95309.0,95308.0,0.0037218]
[1732808281403,0.21963059,95309.0,95308.0,0.0037218]
[1732808281615,0.104921,95309.0,95308.0,0.0037218]
[1732808282077,0.104921,95309.0,95308.0,0.0017218]
[1732808282566,0.114921,95309.0,95308.0,0.0027218]
[1732808282808,0.10678538,95309.0,95308.0,0.0027218]
[1732808283050,0.104921,95309.0,95308.0,0.0027218]
[1732808283980,0.1903628,95309.0,95308.0,0.0027218]
[1732808284421,0.1903628,95309.0,95308.0,0.0017218]
[1732808284630,0.1903628,95309.0,95308.0,0.0027218]
[1732808284861,0.1903628,95309.0,95308.0,0.0017218]
[1732808285071,0.104921,95309.0,95308.0,0.0017218]
[1732808285301,0.104921,95309.0,95308.0,0.0037218]
[1732808286896,0.10678538,95309.0,95308.0,0.0037218]
[1732808287631,0.11678538,95309.0,95308.0,0.0267218]
[1732808287857,0.16503903,95309.0,95308.0,0.0267218]
[1732808288326,0.21963059,95309.0,95308.0,0.0037218]
[1732808288562,0.35276621,95309.0,95308.0,0.0037218]
[1732808289024,0.35276621,95309.0,95308.0,0.0017218]
[1732808289506,0.34676621,95309.0,95308.0,0.0017218]
[1732808289717,0.30816621,95309.0,95308.0,0.0017218]
[1732808289933,0.22976621,95309.0,95308.0,0.0017218]
[1732808290185,0.23176621,95309.0,95308.0,0.0017218]
[1732808290403,0.108921,95309.0,95308.0,0.0247218]
[1732808290618,0.106921,95309.0,95308.0,0.0247218]
[1732808291097,0.108921,95309.0,95308.0,0.0247218]
[1732808291792,0.108921,95309.0,95308.0,0.0277218]
[1732808292918,0.002,95309.0,95308.0,0.0277218]
[1732808293411,0.101921,95309.0,95308.0,0.0277218]
[1732808293648,0.101921,95309.0,95308.0,0.04215152]
[1732808293872,0.101921,95309.0,95308.0,0.03915152]
[1732808294091,0.112921,95309.0,95308.0,0.04815152]
[1732808294306,0.19168538,95309.0,95308.0,0.0185885]
[1732808294525,0.19068538,95309.0,95308.0,0.0017218]
[1732808294759,0.19068538,95309.0,95308.0,0.0027218]
[1732808294969,0.28428494,95309.0,95308.0,0.0067218]
[1732808295186,0.28242056,95309.0,95308.0,0.0027218]
[1732808295404,0.188821,95309.0,95308.0,0.0057218]
[1732808295625,0.19068538,95309.0,95308.0,0.0057218]
[1732808295839,0.19068538,95309.0,95308.0,0.0027218]
[1732808296296,0.11378538,95309.0,95308.0,0.0027218]
[1732808296775,0.11378538,95309.0,95308.0,0.0017218]
[1732808297015,0.11378538,95309.0,95308.0,0.0027218]
[1732808297249,0.11378538,95309.0,95308.0,0.0037218]
[1732808297468,0.11378538,95309.0,95308.0,0.0027218]
[1732808300637,0.32532333,95309.0,95308.0,0.0027218]
[1732808300885,0.47345895,95309.0,95308.0,0.0027218]
[1732808301533,0.37476621,95309.0,95308.0,0.0017218]
[1732808301980,0.72275795,95309.0,95308.0,0.0017218]
[1732808302212,0.37776621,95309.0,95308.0,0.0017218]
[1732808302435,0.38276621,95309.0,95308.0,0.0027218]
[1732808302875,0.37476621,95309.0,95308.0,0.0017218]
[1732808303093,0.38176621,95309.0,95308.0,0.0027218]
[1732808303306,0.38176621,95309.0,95308.0,0.0257218]
[1732808303547,0.72672394,95309.0,95308.0,0.0257218]
[1732808303770,0.38176621,95309.0,95308.0,0.0257218]
[1732808303991,0.38576621,95309.0,95308.0,0.0257218]
[1732808304449,0.37476621,95309.0,95308.0,0.0247218]
[1732808304905,0.38276621,95309.0,95308.0,0.0247218]
[1732808305618,0.37976621,95309.0,95308.0,0.0247218]
[1732808305845,0.37476621,95309.0,95308.0,0.0247218]
[1732808306061,0.37976621,95309.0,95308.0,0.0247218]
[1732808307007,0.73559767,95309.0,95308.0,0.0017218]
[1732808307221,1.3918799,95309.0,95308.0,0.0017218]
[1732808307678,1.3897417,95309.0,95308.0,0.0017218]
[1732808307903,1.3957417,95309.0,95308.0,0.0017218]
[1732808308126,1.3867417,95309.0,95308.0,0.0017218]
[1732808308363,1.3897417,95309.0,95308.0,0.0017218]
[1732808308594,1.20283264,95309.0,95308.0,0.0017218]
[1732808308830,0.86085947,95309.0,95308.0,0.0017218]
[1732808309077,1.20575701,95309.0,95308.0,0.0017218]
[1732808309802,1.10292555,95309.0,95308.0,0.0017218]
[1732808310020,1.10292555,95309.0,95308.0,8e-07]
[1732808310246,1.33649028,95309.0,95308.0,8e-07]
[1732808310486,1.10292555,95309.0,95308.0,8e-07]
[1732808311221,0.85292555,95309.0,95308.0,8e-07]
[1732808311466,0.50802801,95309.0,95308.0,8e-07]
[1732808311723,0.1107828,95309.0,95308.0,8e-07]
[1732808312618,0.1057828,95309.0,95308.0,8e-07]
[1732808313099,0.1097828,95309.0,95308.0,0.03742298]
[1732808313314,0.1067828,95309.0,95308.0,0.0230008]
[1732808313754,0.19559812,95309.0,95308.0,0.0230008]
[1732808313968,0.1974625,95309.0,95308.0,0.0230008]
[1732808314191,0.1944625,95309.0,95308.0,0.0230008]
[1732808314552,0.11464718,95309.0,95308.0,0.0010008]
[1732808314651,0.11564718,95309.0,95308.0,0.0010008]
[1732808314859,0.11464718,95309.0,95308.0,8e-07]
[1732808315298,0.11764718,95309.0,95308.0,8e-07]
[1732808315973,0.11764718,95309.0,95308.0,0.0010008]
[1732808316182,0.11764718,95309.0,95308.0,8e-07]
[1732808316183,0.11564718,95309.0,95308.0,8e-07]
[1732808316608,0.1037828,95309.0,95308.0,8e-07]
[1732808316847,0.1027828,95309.0,95308.0,8e-07]
[1732808317715,0.10464718,95309.0,95308.0,0.0250008]
[1732808317941,0.1027828,95309.0,95308.0,0.0230008]
[1732808318614,0.1900625,95309.0,95308.0,0.0230008]
[1732808319584,0.11464718,95309.0,95308.0,0.0230008]
[1732808320051,0.11564718,95309.0,95308.0,0.0230008]
[1732808320495,0.11664718,95309.0,95308.0,0.0230008]
[1732808320934,0.11564718,95309.0,95308.0,0.0230008]
[1732808321375,0.11464718,95309.0,95308.0,0.0230008]
[1732808322019,0.11564718,95309.0,95308.0,0.0230008]
[1732808322538,0.11564718,95309.0,95308.0,8e-07]
[1732808322967,0.11564718,95309.0,95308.0,0.0250008]
[1732808323449,0.11464718,95309.0,95308.0,0.0250008]
[1732808326143,0.1027828,95309.0,95308.0,0.0250008]
[1732808327029,0.1027828,95309.0,95308.0,0.03156357]
[1732808329111,0.1027828,95309.0,95308.0,0.0250008]
[1732808330482,0.1027828,95309.0,95308.0,0.03484496]
[1732808332129,0.1027828,95309.0,95308.0,0.03156358]
[1732808333254,0.45859239,95309.0,95308.0,0.0020008]
[1732808333485,0.274925,95306.0,95305.0,1e-07]
[1732808333748,0.80566688,95306.0,95305.0,1e-07]
[1732808334045,0.80566688,95306.0,95254.0,0.1885911]
[1732808334046,0.0831,95277.0,95253.0,0.09429555]
[1732808334271,0.0831,95277.0,95254.0,0.00656409]
[1732808334272,0.209956,95258.0,95254.0,0.00656409]
[1732808334488,0.209956,95258.0,95253.0,0.01307775]
[1732808334713,0.209956,95258.0,95240.0,0.209994]
[1732808334714,0.104981,95255.0,95254.0,0.00656425]